Cogmind - Beta 17.1 @@@ ROGUE MODE // 2026.09.15 @ 17:57:01 Player: Caluan Result: Self-destructed Performance ------------- Evolutions (5) 2500 Regions Visited (13) 2600 Robots Destroyed (217) 1085 Value Destroyed (8128) 8128 Prototype IDs (2) 40 Alien Tech Used (0) 0 Bonus (2699) 2699 TOTAL SCORE: 17052 Bonus ------- High Alert Combat Kills 1005 Follower Combat Kills 413 Entered Garrisons 400 Used RIF Installer 1000 Friendly Fire -119 Cogmind --------- Core Integrity 809/1000 Matter 234/300 Energy 100/100 System Corruption 0% Temperature Cool (0) Movement Core (50) Location -5/Waste Parts ------- > --- POWER (1) -------- (None) > --- PROPULSION (4) --- (None) > --- UTILITY (9) ------ (None) > --- WEAPON (3) ------- (None) > --- INVENTORY (5) ---- Relay Coupler [NC] (26) Relay Coupler [Sentry] (20) Remote Datajack Plasma Cutter Heavy Flail Peak State ------------ > --- POWER ------------ Light Angular Momentum Engine > --- PROPULSION ------- Improved Treads Heavy Treads Wheel > --- UTILITY ---------- Advanced Cooling System Huge Storage Unit Improved Salvage Targeting Computer Armor Integrity Analyzer Layered Medium Armor Plating Relay Coupler [Brawler] Relay Coupler [Sentry] Relay Coupler [Hunter] > --- WEAPON ----------- Gauss Rifle Gauss Rifle Flak Gun > --- INVENTORY -------- Disposable Heat Sink Coolant Injector Energy Well High-capacity Matter Pod Transmission Jammer Hardened Medium Armor Plating Relay Coupler [NC] Relay Coupler [NC] Relay Coupler [NC] Relay Coupler [Sentry] Relay Coupler [Sentry] Relay Coupler [Sentry] Relay Coupler [Sentry] Relay Coupler [Sentry] Relay Coupler [Specialist] Relay Coupler [Behemoth] High-powered Tractor Beam Heavy Flak Cannon Heavy Flak Cannon Grenade Launcher Improved Datajack Remote Datajack Plasma Cutter Heavy Flail [Rating: 71] Favorites ----------- Power Improved Ion Engine Engine Improved Ion Engine Power Core Nuclear Core Reactor Light Antimatter Reactor Propulsion Light Treads Treads Light Treads Leg Aluminum Leg Wheel Compact Wheel Utility High-capacity Storage Unit Device Disposable Heat Sink Storage High-capacity Storage Unit Processor Improved Targeting Computer Hackware Hacking Suite Protection Improved Light Armor Plating Weapon Minigun Energy Gun Heavy EM Pulse Gun Energy Cannon Light EM Pulse Cannon Ballistic Gun Minigun Ballistic Cannon Linear Accelerator Launcher Grenade Launcher Special Weapon Remote Datajack Impact Weapon Heavy Flail Special Melee Weapon Improved Datajack Build | -11 -10 -10 -9 -9 -8 -8 -7 -7 -7 -6 -6 -5 -5 ------- Run | Yrd Mat Min Mat Min Mat Gar Fac Low Low Fac Gar Fac Was Slots Evolved 10 | . . . 2 . 2 . 2 . . 2 . 2 . Power . | . . . . . . . . . . . . . . Propulsion 2 | . . . 1 . . . . . . 1 . . . Utility 7 | . . . 1 . 1 . 2 . . 1 . 2 . Weapon 1 | . . . . . 1 . . . . . . . . Parts Attached 122 | 6 14 1 18 . 25 13 5 3 . 11 20 2 4 Power 13 | 1 2 . 2 . 2 1 1 . . 1 3 . . Engine 6 | 1 2 . 1 . . 1 . . . . 1 . . Core 6 | . . . 1 . 2 . 1 . . 1 1 . . Reactor 1 | . . . . . . . . . . . 1 . . Propulsion 40 | 2 4 . 7 . 12 4 . 2 . 4 4 . 1 Treads 31 | 2 . . 7 . 10 4 . 2 . 3 2 . 1 Leg 2 | . 2 . . . . . . . . . . . . Wheel 7 | . 2 . . . 2 . . . . 1 2 . . Hover . | . . . . . . . . . . . . . . Flight . | . . . . . . . . . . . . . . Utility 26 | 1 3 . 1 . 3 3 3 . . 6 4 2 . Device 5 | . 1 . 1 . 1 . . . . 1 . 1 . Storage 4 | 1 1 . . . . . . . . 2 . . . Processor 4 | . 1 . . . . 1 1 . . 1 . . . Hackware 7 | . . . . . 1 1 1 . . 1 2 1 . Protection 6 | . . . . . 1 1 1 . . 1 2 . . Artifact . | . . . . . . . . . . . . . . Weapon 43 | 2 5 1 8 . 8 5 1 1 . . 9 . 3 Energy Gun 11 | . 5 1 1 . . . . . . . 4 . . Energy Cannon 2 | . . . 2 . . . . . . . . . . Ballistic Gun 21 | 2 . . 3 . 8 3 . 1 . . 4 . . Ballistic Cannon 3 | . . . . . . . . . . . . . 3 Launcher 2 | . . . 1 . . . . . . . 1 . . Special Weapon 1 | . . . . . . . 1 . . . . . . Impact Weapon 2 | . . . 1 . . 1 . . . . . . . Slashing Weapon . | . . . . . . . . . . . . . . Piercing Weapon . | . . . . . . . . . . . . . . Special Melee Weapon 1 | . . . . . . 1 . . . . . . . Unidentified Prototypes 2 | . . . . . 1 . . . . 1 . . . Corrupted Parts 2 | . . . . . . . . 1 . . 1 . . System Corruption 5 | . . . . . . . . 3 . . 2 . . Parts Lost 54 | . 7 1 7 . 5 2 . 6 . 8 10 . 8 Power 7 | . 2 . 1 . . . . . . 1 2 . 1 Propulsion 20 | . 2 . 3 . 3 1 . 2 . 4 4 . 1 Utility 6 | . . . . . . 1 . 1 . 1 . . 3 Weapon 21 | . 3 1 3 . 2 . . 3 . 2 4 . 3 Highest Loss Streak 7 | . 3 1 2 . 1 2 . 3 . 2 4 . 7 To Critical Strikes . | . . . . . . . . . . . . . . Average Backups 17 | . 7 14 15 18 19 19 19 17 18 19 24 24 14 Power . | . . . . 2 1 . 1 1 1 1 . . . Propulsion 1 | . . 1 2 . 1 2 1 1 2 2 . . . Utility 8 | . 1 8 8 8 8 7 8 8 8 9 17 17 9 Weapon 4 | . 3 3 3 6 6 6 6 4 4 3 3 4 2 Tool/Special . | . . . . . . . . . . . . . . Unused Backups 43 | . 2 . 5 . 10 . . . . . 9 . 17 Power 1 | . 1 . . . . . . . . . . . . Propulsion 4 | . . . 3 . 1 . . . . . . . . Utility 29 | . . . . . 6 . . . . . 7 . 16 Weapon 6 | . . . 2 . 2 . . . . . 2 . . Tool/Special 3 | . 1 . . . 1 . . . . . . . 1 Average Slot Usage (%) 88 | . 93 100 86 100 96 97 80 80 76 88 78 80 42 Engine 4 | . 8 14 6 . . 6 4 . . . . 5 2 Core 3 | . . . 1 11 9 2 2 7 7 5 2 . . Treads 19 | . 14 . 31 33 25 27 23 22 23 23 3 5 4 Wheel 4 | . 9 28 . . 1 . . . . . 10 5 2 Device 5 | . 11 . 8 11 9 . . . . 5 6 5 2 Storage 9 | . 14 14 11 11 9 9 7 7 7 10 6 5 2 Processor 8 | . 1 14 11 11 9 9 7 7 7 8 13 11 5 Hackware 6 | . . . . . 2 9 10 7 7 10 10 15 8 Protection 3 | . . . . . 4 5 . 7 7 5 6 5 2 Energy Gun 4 | . 15 28 8 . . . . . . . 2 . . Ballistic Gun 16 | . 12 . 5 22 25 25 21 19 15 14 8 12 7 Peak Build Rating 71 | 6 12 12 20 20 31 33 35 35 34 59 58 59 71 Average Rating 28 | 4 8 11 13 20 27 28 28 32 33 50 48 57 33 On Entrance 27 | . 6 12 12 20 20 30 28 35 33 34 41 53 59 Avg Prop Armor Cover (%) 9 | . . . . . 7 . 7 6 6 21 10 7 11 Naked Turns 64 | . . . . . . . . . . . . . 64 Heaviest Build 114 | 12 52 51 54 54 60 61 64 65 62 114 114 110 111 Greatest Support 98 | 40 40 32 60 60 63 60 60 60 62 98 48 10 70 Greatest Overweight (x) 15 | . 15 1 1 . 5 1 1 1 1 3 10 10 11 Average Overweight (x) 1 | . 1 1 . . . . . 1 . 1 3 10 1 Largest Inventory Capacity 25 | 8 20 20 20 20 20 20 20 20 20 25 25 25 25 Average Capacity 20 | 6 18 20 20 20 20 20 20 20 20 24 25 25 14 Most Carried 25 | 2 14 15 20 19 20 20 20 20 20 22 25 25 24 Average Carried 17 | . 7 14 15 18 19 19 19 17 18 20 24 24 14 Final Capacity 25 | 8 20 20 20 20 20 20 20 20 20 25 25 25 5 Final Carried 25 | 2 14 15 18 18 20 20 20 18 20 20 25 24 5 Class Distribution -------------------- 35% | Mutant 21% | Scavenger-Gunner 14% | Gunner 10% | Scavenger-Mutant 6% | Scavenger-Tank 5% | Bothacker-Gunner 3% | Bothacker-Mutant Dominant Class ---------------- Mutant | -10/Materials Mutant | -10/Mines Mutant | -9/Materials Mutant | -9/Mines Gunner | -8/Materials Scavenger-Gunner | -8/Garrison Scavenger-Gunner | -7/Factory Scavenger-Tank | -7/Lower Caves Scavenger-Mutant | -7/Lower Caves Scavenger-Tank | -6/Factory Bothacker-Mutant | -6/Garrison Bothacker-Gunner | -5/Factory Mutant | -5/Waste Resources | -11 -10 -10 -9 -9 -8 -8 -7 -7 -7 -6 -6 -5 -5 ----------- Run | Yrd Mat Min Mat Min Mat Gar Fac Low Low Fac Gar Fac Was Matter Collected 5810 | 219 238 16 263 103 1822 999 374 272 15 654 638 . 197 Remotely . | . . . . . . . . . . . . . . Salvage Created 8484 | . 753 82 1236 184 1860 1425 349 224 . 930 935 . 506 Parts 437 | . 45 2 65 14 113 69 26 10 . 39 44 . 10 Haulers Intercepted 9 | . 2 . 3 . 3 . 1 . . . . . . Recyclers Shooed 9 | 1 . 1 3 . . . . . . 4 . . . Parts Field Recycled . | . . . . . . . . . . . . . . Retrieved Matter . | . . . . . . . . . . . . . . Parts Self-Destructed 16 | . . . . . . . . 10 6 . . . . Prevented . | . . . . . . . . . . . . . . Parts Restored . | . . . . . . . . . . . . . . Kills | -11 -10 -10 -9 -9 -8 -8 -7 -7 -7 -6 -6 -5 -5 ------- Run | Yrd Mat Min Mat Min Mat Gar Fac Low Low Fac Gar Fac Was Combat Hostiles Destroyed 162 | . 13 2 17 9 33 26 9 6 . 19 26 . 2 Melee 1 | . . . . . . . . . . . 1 . . Guns 140 | . 13 2 12 9 33 21 8 5 . 19 16 . 2 AOE 17 | . . . 4 . . 3 1 1 . . 8 . . Classes Destroyed 18 | . 9 . 2 . 2 3 . . . 1 . . 1 Worker 15 | . 2 . 1 . 4 . 2 . . 6 . . . Builder 7 | . 2 . . . . . 2 . . 3 . . . Tunneler 1 | . 1 . . . . . . . . . . . . Hauler 9 | . 2 . 3 . 3 . 1 . . . . . . Recycler 9 | . 1 . 5 . 1 . . . . 2 . . . Operator 6 | . 2 . 1 . 1 . 1 . . 1 . . . Watcher 7 | . 1 . . . 4 . . . . 2 . . . Swarmer 45 | . 5 . 3 7 6 . 3 3 . 6 12 . . Cutter 3 | . . . . . 3 . . . . . . . . Grunt 69 | . 8 2 8 1 14 12 4 2 . 8 10 . . Brawler 2 | . . . . . . 1 . 1 . . . . . Duelist 5 | . . . 1 1 1 1 . . . . 1 . . Sentry 24 | . . . 5 . 8 7 . . . 2 2 . . Specialist 2 | . . . . . . . . . . 2 . . . Hunter 1 | . . . . . . 1 . . . . . . . Programmer 8 | . . . . . . 4 2 . . 1 1 . . Heavy 1 | . . . . . 1 . . . . . . . . Compactor 2 | . . . . . . . . . . . . . 2 Thug 1 | . . . 1 . . . . . . . . . . Best Kill Streak 11 | . 7 2 7 5 4 6 6 3 . 11 6 . 1 Combat Bots Only 6 | . 3 2 6 4 4 6 3 3 . 6 6 . 1 Max Kills in Single Turn 6 | . 5 1 3 2 2 2 5 1 . 6 2 . 1 Gunslinging 1 | . . . 1 1 1 . . . . 1 1 . . Exploded 3 | . . . 3 . . 2 1 1 . . 2 . . Melee 1 | . . . . . . . . . . . 1 . . Uniques/NPCs Destroyed . | . . . . . . . . . . . . . . Combat | -11 -10 -10 -9 -9 -8 -8 -7 -7 -7 -6 -6 -5 -5 -------- Run | Yrd Mat Min Mat Min Mat Gar Fac Low Low Fac Gar Fac Was Hostile Shots Fired 932 | . 104 6 84 42 162 128 34 43 . 147 166 3 13 Missed 269 | . 28 . 19 11 50 35 9 12 . 51 50 1 3 Hits 663 | . 76 6 65 31 112 93 25 31 . 96 116 2 10 Melee 27 | . . . 1 . 9 1 . 6 . . . . 10 Projectile 636 | . 76 6 64 31 103 92 25 25 . 96 116 2 . AOE 9 | . . . . . 4 5 . . . . . . . Critical Strikes 24 | . 2 . 2 . 5 2 1 3 . 3 1 . 5 Part Disruptions 1 | . . . . . . . 1 . . . . . . Damage Taken 10173 | . 903 158 957 244 1837 1628 379 614 . 1268 1670 44 471 Core 1384 | . 118 46 77 . 165 255 62 64 . 143 263 . 191 Absorbed by Shields 8 | . . . . . . . . . . . 8 . . Reduced by Siege Mode 11 | . . . . . . . . . . . . . 11 Regen/Repaired (Parts) 231 | . 51 . . . 101 79 . . . . . . . Core Remaining (%) 61 | 100 . 34 . 80 . 23 . . 82 . 52 . . Volleys Fired 479 | . 69 4 53 19 101 65 21 17 . 55 53 1 21 Largest 3 | . 2 2 2 2 3 3 3 3 . 3 3 1 3 Hottest 188 | . 90 90 112 50 75 81 76 79 . 84 188 5 84 Shots Fired 1084 | . 137 8 82 38 292 182 61 40 2 114 91 1 36 Gun 1050 | . 137 8 77 38 292 177 60 36 2 114 81 . 28 Cannon 12 | . . . 4 . . . . . . . . . 8 Launcher 18 | . . . 1 . . 5 . 4 . . 8 . . Special 4 | . . . . . . . 1 . . . 2 1 . Kinetic 916 | . 72 . 31 38 292 177 60 36 2 114 58 . 36 Thermal 17 | . 10 . . . . . . . . . 7 . . Explosive 7 | . . . . . . . . . . . 7 . . Electromagnetic 140 | . 55 8 51 . . 5 . 4 . . 17 . . Robot Hit Streak 45 | . 8 7 45 10 19 34 11 11 3 13 11 2 21 Robot Miss Streak 8 | . 8 1 3 2 5 6 4 6 4 6 8 . 2 Penetration Max . | . . . . . . . . . . . . . . Secondary Targets 22 | . . 1 3 3 5 2 1 . . 3 4 . . Max Gunslinging Chain 1 | . . 1 1 1 1 1 1 . . 1 1 . . Shots Hit Robots 835 | . 82 7 74 25 189 159 45 30 1 114 80 1 28 Core Hits 584 | . 39 3 39 10 80 75 30 24 3 183 86 . 12 Critical Kills 4 | . . . . . 3 . . . . . 1 . . Critical Parts Destroyed 7 | . . . 1 . . 3 1 . . . 2 . . Critical Strikes 13 | . 1 . 2 . 3 3 1 . . . 3 . . Destroy 9 | . . . . . 3 3 1 . . . 2 . . Corrupt 2 | . 1 . 1 . . . . . . . . . . Smash 2 | . . . 1 . . . . . . . 1 . . Melee Attacks 34 | . . . 2 . . 12 3 . . 4 13 . . Impact 21 | . . . 2 . . 5 1 . . . 13 . . Slashing . | . . . . . . . . . . . . . . Piercing . | . . . . . . . . . . . . . . Sneak Attacks 9 | . . . 1 . . 6 2 . . . . . . Combat Hostiles . | . . . . . . . . . . . . . . Follow-up Attacks . | . . . . . . . . . . . . . . Damage Inflicted 18574 | 1 1248 260 1559 438 3253 3365 1407 614 22 3308 2249 . 850 Guns 13879 | . 967 110 1062 438 3231 2610 786 535 22 2291 1304 . 523 Cannons 404 | . . . 77 . . . . . . . . . 327 Explosions 3680 | . 228 112 287 . . 755 606 79 . 962 651 . . Melee 361 | . . . 67 . . . . . . . 294 . . Ramming 250 | 1 53 38 66 . 22 . 15 . . 55 . . . Kinetic 12590 | . 377 . 437 438 3231 2610 786 535 22 2291 1013 . 850 Thermal 1494 | . 305 112 231 . . 114 606 . . . 126 . . Explosive 1546 | . . . . . . . . . . 962 584 . . Electromagnetic 2333 | . 513 110 758 . . 641 . 79 . . 232 . . Impact 361 | . . . 67 . . . . . . . 294 . . Slashing . | . . . . . . . . . . . . . . Piercing . | . . . . . . . . . . . . . . Highest Corruption 9 | . 1 1 . . . 5 1 9 9 . 2 . . Average Corruption 2 | . 1 1 . . . 3 1 7 9 . 2 . . Corruption Purged . | . . . . . . . . . . . . . . Corruption Blocked . | . . . . . . . . . . . . . . Effects 84 | . 4 5 . . . 32 4 20 5 . 14 . . Message Errors 16 | . 2 1 . . . 6 1 4 1 . 1 . . Matter Fused 17 | . 1 1 . . . 6 1 5 . . 3 . . Heat Flow Errors 10 | . 1 1 . . . 4 2 1 1 . . . . Energy Discharges 13 | . . . . . . 5 . 2 1 . 5 . . Parts Rejected 1 | . . . . . . 1 . . . . . . . Data Loss (minor) 11 | . . . . . . 4 . 3 . . 4 . . Data Loss (major) 5 | . . 2 . . . 2 . 1 . . . . . Misfires 6 | . . . . . . 3 . 1 2 . . . . Alerts 4 | . . . . . . 1 . 3 . . . . . Weapon Failures 1 | . . . . . . . . . . . 1 . . Overload Shots . | . . . . . . . . . . . . . . Overflow Damage 532 | . . 35 75 . . 20 132 . . 196 74 . . Projectiles . | . . . . . . . . . . . . . . Explosions 413 | . . 35 26 . . 20 132 . . 196 4 . . Melee 119 | . . . 49 . . . . . . . 70 . . Knockbacks 2 | . . . 2 . . . . . . . . . . Impact 2 | . . . 2 . . . . . . . . . . Kinetic . | . . . . . . . . . . . . . . Secondary . | . . . . . . . . . . . . . . Self-Inflicted Damage 293 | . 55 72 93 . . . . 20 . . 53 . . Shots 9 | . 2 1 3 . . . . 1 . . 2 . . Rammed 29 | 1 3 3 11 . 1 . 2 . 1 7 . . . Targets Rammed 38 | 1 8 3 13 . 1 . 3 . 1 8 . . . Kicked 4 | . 4 . . . . . . . . . . . . Crushed 5 | . 1 . 2 . . . 1 . . 1 . . . Highest Temperature 273 | . 273 239 232 16 203 222 149 213 123 120 217 . . Average Temperature 51 | . 57 105 55 9 40 47 39 102 82 29 73 . . Received Heat Transfer 2697 | . 381 48 357 12 432 405 99 99 . 378 486 . . Effects 4 | . . . 1 . . . . . . . 3 . . Interference 4 | . . . 1 . . . . . . . 3 . . Siege Activations 1 | . . . . . . . . . . . . . 1 Total Turns 19 | . . . . . . . . . . . . . 19 Longest Duration 19 | . . . . . . . . . . . . . 19 Martial Activations . | . . . . . . . . . . . . . . Shielding Activations . | . . . . . . . . . . . . . . Robots Disrupted 1 | . . . 1 . . . . . . . . . . Combat Hostiles 1 | . . . 1 . . . . . . . . . . Robots Corrupted 6 | . . . 2 . . 3 . . . . 1 . . Combat Hostiles 4 | . . . 1 . . 2 . . . . 1 . . Parts Fried 12 | . . 1 8 . . 2 . . . . 1 . . Impact Corruptions 5 | . . . 2 . . . . . . . 3 . . Robots Melted . | . . . . . . . . . . . . . . Combat Hostiles . | . . . . . . . . . . . . . . Parts Melted 1 | . . . . . . . 1 . . . . . . Heat Transferred 2022 | . 622 100 450 . . 100 450 . . . 300 . . Parts Sabotaged . | . . . . . . . . . . . . . . Parts Stolen . | . . . . . . . . . . . . . . Parts Stripped . | . . . . . . . . . . . . . . Power Chain Reactions 8 | . 3 1 3 . . 1 . . . . . . . Alert | -11 -10 -10 -9 -9 -8 -8 -7 -7 -7 -6 -6 -5 -5 ------- Run | Yrd Mat Min Mat Min Mat Gar Fac Low Low Fac Gar Fac Was Maximum Alert Level 4 | . . . 1 1 2 4 3 . . 2 4 2 . Low Security (%) 45 | 100 100 100 99 86 39 . . . . 76 . . 100 Level 1 12 | . . . . 13 43 15 . . . 9 14 . . Level 2 22 | . . . . . 17 35 61 . . 14 23 100 . Level 3 13 | . . . . . . 35 38 . . . 26 . . Level 4 6 | . . . . . . 13 . . . . 35 . . Level 5 . | . . . . . . . . . . . . . . High Security . | . . . . . . . . . . . . . . Max Security . | . . . . . . . . . . . . . . Peak Influence 1323 | . 105 55 201 215 422 1245 784 . . 471 1323 694 186 Initial 694 | . . . 8 45 68 266 653 . . 74 321 694 186 Average 380 | . 20 5 106 156 222 744 627 . . 131 839 615 86 Influence Increases 5937 | . 401 57 583 240 981 999 546 170 30 788 1142 . . Destroy 0b10 Robot/C 3420 | . 260 40 400 180 660 520 180 120 . 420 640 . . Destroy 0b10 Robot/NC 285 | . 55 . 50 . 65 5 30 . . 80 . . . Destroy Leader 606 | . 46 10 106 30 164 30 42 20 . 108 50 . . Allied During Kill 56 | . . . 5 . . 10 . . . 6 35 . . Successful Hack 63 | . . . 6 . 41 12 4 . . . . . . Disable Machine 390 | . 30 . . . 15 . 225 . . 120 . . . Anti-Garrison Action 750 | . . . . . . 400 . . . . 350 . . Destroy Structure 172 | . 10 7 16 . 6 22 65 . . 24 22 . . Lose Combat Pursuer 195 | . . . . 30 30 . . 30 30 30 45 . . Influence Decreases 5937 | . 401 34 490 181 746 164 1136 653 84 447 278 789 534 Entered New Map 2365 | . . . 15 71 107 144 592 243 34 44 138 629 348 Time Decay 2864 | . 331 32 385 110 589 . 494 350 50 303 . 160 60 Lost Part 522 | . 70 2 70 . 50 20 . 60 . 80 100 . 70 Lost Ally 186 | . . . 20 . . . 50 . . 20 40 . 56 Squads Dispatched 20 | . 1 . 3 . 3 . 6 . . 7 . . . Investigation 3 | . 1 . 1 . . . 1 . . . . . . Extermination 4 | . . . . . . . 2 . . 2 . . . Reinforcement 12 | . . . 2 . 3 . 3 . . 4 . . . Assault . | . . . . . . . . . . . . . . Garrison 1 | . . . . . . . . . . 1 . . . Intercept . | . . . . . . . . . . . . . . Searches Triggered . | . . . . . . . . . . . . . . Construction Impeded . | . . . . . . . . . . . . . . Haulers Reinforced 2 | . . . . . . . 1 . . 1 . . . Active Scanning Responses . | . . . . . . . . . . . . . . Cargo Convoy Interrupts . | . . . . . . . . . . . . . . Stealth | -11 -10 -10 -9 -9 -8 -8 -7 -7 -7 -6 -6 -5 -5 --------- Run | Yrd Mat Min Mat Min Mat Gar Fac Low Low Fac Gar Fac Was Distress Signals 15 | . 2 . 1 . 4 . 2 . . 6 . . . Communications Jammed . | . . . . . . . . . . . . . . Distress Signals . | . . . . . . . . . . . . . . Times Spotted 258 | . 31 2 24 11 47 27 21 8 5 39 36 1 6 Peak Tracking Total 6 | . 5 2 4 4 5 6 5 3 4 6 4 1 4 Tactical Retreats 10 | . . . . 2 2 . . 1 1 2 2 . . Traps | -11 -10 -10 -9 -9 -8 -8 -7 -7 -7 -6 -6 -5 -5 ------- Run | Yrd Mat Min Mat Min Mat Gar Fac Low Low Fac Gar Fac Was Traps Triggered 13 | . 1 . 1 . 3 1 2 . . . 4 1 . Indirectly . | . . . . . . . . . . . . . . Trap Hack Attempts . | . . . . . . . . . . . . . . Triggered . | . . . . . . . . . . . . . . Disarmed . | . . . . . . . . . . . . . . Reprogrammed . | . . . . . . . . . . . . . . Reused . | . . . . . . . . . . . . . . Traps Extracted . | . . . . . . . . . . . . . . Installed . | . . . . . . . . . . . . . . Triggered . | . . . . . . . . . . . . . . Machines | -11 -10 -10 -9 -9 -8 -8 -7 -7 -7 -6 -6 -5 -5 ---------- Run | Yrd Mat Min Mat Min Mat Gar Fac Low Low Fac Gar Fac Was Machines Disabled 33 | . 2 . . . 1 3 15 . . 8 4 . . Max in Single Turn 14 | . 1 . . . 1 1 14 . . 5 1 . . Garrison Relay 6 | . . . . . . 2 . . . . 4 . . Machines Repaired . | . . . . . . . . . . . . . . Machines Dismantled . | . . . . . . . . . . . . . . Machines Sabotaged . | . . . . . . . . . . . . . . Overloaded Fab Kills . | . . . . . . . . . . . . . . Hacking | -11 -10 -10 -9 -9 -8 -8 -7 -7 -7 -6 -6 -5 -5 --------- Run | Yrd Mat Min Mat Min Mat Gar Fac Low Low Fac Gar Fac Was Machines Accessed 33 | . 5 . 5 . 13 2 3 . . 3 1 1 . Terminals 20 | . 2 . 3 . 8 2 3 . . 1 1 . . Fabricators 1 | . . . . . . . . . . . . 1 . Repair Stations 3 | . 1 . . . 2 . . . . . . . . Recycling Units 5 | . 2 . 2 . 1 . . . . . . . . Scanalyzers 2 | . . . . . 1 . . . . 1 . . . Garrison Access 2 | . . . . . 1 . . . . 1 . . . Total Hacks 73 | . 11 . 14 . 29 3 7 . . 4 2 3 . Successful 37 | . 6 . 7 . 15 2 2 . . 2 1 2 . Failed 35 | . 5 . 7 . 14 1 5 . . 1 1 1 . Catastrophic 4 | . . . 1 . 2 . . . . . 1 . . Database Lockouts 1 | . . . . . . . . . . 1 . . . Manual 42 | . 6 . 9 . 17 . 7 . . 1 . 2 . Terminals 42 | . 4 . 9 . 16 3 7 . . 1 2 . . Fabricators 3 | . . . . . . . . . . . . 3 . Repair Stations 9 | . 2 . . . 7 . . . . . . . . Recycling Units 12 | . 5 . 5 . 2 . . . . . . . . Scanalyzers 5 | . . . . . 3 . . . . 2 . . . Garrison Access 2 | . . . . . 1 . . . . 1 . . . Terminal Hacks 6 | . . . 2 . . 2 1 . . . 1 . . Record 2 | . . . 2 . . . . . . . . . . Open Door 1 | . . . . . . . . . . . 1 . . Branch Access Points 1 | . . . . . . . 1 . . . . . . Emergency Access Points 1 | . . . . . . 1 . . . . . . . Garrison Registry 1 | . . . . . . 1 . . . . . . . Fabricator Hacks 1 | . . . . . . . . . . . . 1 . Build 1 | . . . . . . . . . . . . 1 . Repair Station Hacks 6 | . 2 . . . 4 . . . . . . . . Scan Component 3 | . 1 . . . 2 . . . . . . . . Repair 3 | . 1 . . . 2 . . . . . . . . Recycling Unit Hacks 3 | . 2 . 1 . . . . . . . . . . Retrieve Components 3 | . 2 . 1 . . . . . . . . . . Scanalyzer 4 | . . . . . 3 . . . . 1 . . . Retrieve Study 4 | . . . . . 3 . . . . 1 . . . Garrison Access Hacks 2 | . . . . . 1 . . . . 1 . . . Unlock Access 2 | . . . . . 1 . . . . 1 . . . Unauthorized Hacks 15 | . 2 . 4 . 7 . 1 . . . . 1 . Terminals 10 | . 1 . 2 . 6 . 1 . . . . . . Assimilate 1 | . 1 . . . . . . . . . . . . Botnet 9 | . . . 2 . 6 . 1 . . . . . . Fabricators 1 | . . . . . . . . . . . . 1 . Liberate 1 | . . . . . . . . . . . . 1 . Repair Stations . | . . . . . . . . . . . . . . Recycling Units 4 | . 1 . 2 . 1 . . . . . . . . Reject 4 | . 1 . 2 . 1 . . . . . . . . Scanalyzers . | . . . . . . . . . . . . . . Garrison Access . | . . . . . . . . . . . . . . Data Cores Recovered 2 | . 1 . . . 1 . . . . . . . . Used . | . . . . . . . . . . . . . . Hacking Detections 23 | . 2 . 4 . 11 . 3 . . 1 1 1 . Full Trace Events 2 | . . . 1 . . . . . . . 1 . . Feedback Events . | . . . . . . . . . . . . . . Feedback Blocked . | . . . . . . . . . . . . . . Robot Schematics Acquired . | . . . . . . . . . . . . . . Robots Built 2 | . . . . . . . . . . . . 2 . Authchips . | . . . . . . . . . . . . . . Time 81 | . . . . . . . . . . . . 81 . Total Robot Build Rating 2 | . . . . . . . . . . . . 2 . Part Schematics Acquired . | . . . . . . . . . . . . . . Parts Built . | . . . . . . . . . . . . . . Authchips . | . . . . . . . . . . . . . . Time . | . . . . . . . . . . . . . . Total Part Build Rating . | . . . . . . . . . . . . . . Part Studies Acquired 4 | . . . . . 3 . . . . 1 . . . Parts Repaired 3 | . 1 . . . 2 . . . . . . . . Time 127 | . 36 . . . 91 . . . . . . . . Parts Recycled . | . . . . . . . . . . . . . . Recycled Matter . | . . . . . . . . . . . . . . Retrieved Matter . | . . . . . . . . . . . . . . Retrieved Components 15 | . 14 . 1 . . . . . . . . . . Parts Scanalyzed . | . . . . . . . . . . . . . . Part Schematics Acquired . | . . . . . . . . . . . . . . Parts Damaged . | . . . . . . . . . . . . . . Bothacking | -11 -10 -10 -9 -9 -8 -8 -7 -7 -7 -6 -6 -5 -5 ------------ Run | Yrd Mat Min Mat Min Mat Gar Fac Low Low Fac Gar Fac Was Used RIF Installer 2 | . . . . . . 1 . . . . 1 . . Watcher Feeds 1 | . . . . . . . . . . . 1 . . Robots Hacked 8 | . . . . . . 1 2 . . 2 2 1 . Non-combat 2 | . . . . . . 1 1 . . . . . . Combat 6 | . . . . . . . 1 . . 2 2 1 . Robot Hacks Applied 12 | . . . . . . 2 3 . . 4 2 1 . parse_system 1 | . . . . . . . . . . 1 . . . no_distress 1 | . . . . . . 1 . . . . . . . locate_stockpiles 1 | . . . . . . . 1 . . . . . . find_garrison 1 | . . . . . . . . . . 1 . . . disable_weapons 1 | . . . . . . . . . . 1 . . . streamctrl_low 1 | . . . . . . . 1 . . . . . . streamctrl_high 1 | . . . . . . . 1 . . . . . . formatsys_low 1 | . . . . . . 1 . . . . . . . formatsys_high 4 | . . . . . . . . . . 1 2 1 . Relay Couplers Released 29 | . . . . . . 12 . . . . 17 . . Machine Destruction 26 | . . . . . . 9 . . . . 17 . . Programmers 3 | . . . . . . 3 . . . . . . . Attached 6 | . . . . . . 1 1 . . 1 2 1 . Fabnet Peak Effective % . | . . . . . . . . . . . . . . Robots Rewired 3 | . . . 1 . . 2 . . . . . . . Allies Hacked . | . . . . . . . . . . . . . . Hacks Repelled . | . . . . . . . . . . . . . . Allies | -11 -10 -10 -9 -9 -8 -8 -7 -7 -7 -6 -6 -5 -5 -------- Run | Yrd Mat Min Mat Min Mat Gar Fac Low Low Fac Gar Fac Was Total Allies 15 | . . 1 1 . . 3 2 . . 1 4 3 . Largest Group 4 | . . 1 1 . . 3 3 . . 1 3 4 4 Highest-Rated Group 100 | . . 31 31 . . 62 62 . . 32 100 93 84 Highest-Rated Ally 51 | . . 31 31 . . 23 23 . . 32 51 41 41 Total Orders 4 | . . . . . . 2 . . . . . 2 . STAY 1 | . . . . . . . . . . . . 1 . FOLLOW 2 | . . . . . . 1 . . . . . 1 . AID 1 | . . . . . . 1 . . . . . . . Ally Attacks 98 | . . . 23 . . 5 1 . . 12 28 . 29 Total Damage 2648 | . . . 347 . . 71 43 . . 286 658 . 1243 Kills 15 | . . . 3 . . . . . . 4 7 . 1 Allies Corrupted . | . . . . . . . . . . . . . . Allies Melted . | . . . . . . . . . . . . . . Intel | -11 -10 -10 -9 -9 -8 -8 -7 -7 -7 -6 -6 -5 -5 ------- Run | Yrd Mat Min Mat Min Mat Gar Fac Low Low Fac Gar Fac Was Active Infowar (turns) . | . . . . . . . . . . . . . . Robot Analysis Total . | . . . . . . . . . . . . . . Derelict Logs Recovered 2 | . . 1 . . . . . 1 . . . . . Drone Launches . | . . . . . . . . . . . . . . Drone Recoveries . | . . . . . . . . . . . . . . Exploration | -11 -10 -10 -9 -9 -8 -8 -7 -7 -7 -6 -6 -5 -5 ------------- Run | Yrd Mat Min Mat Min Mat Gar Fac Low Low Fac Gar Fac Was Turns Passed 13321 | 79 2004 546 1093 234 1857 2217 1301 786 101 1035 1545 331 192 Spaces Moved 6445 | 48 953 446 475 99 790 1177 599 300 58 376 856 138 130 Core 121 | 8 3 . . . . . . . . . . . 110 Treads 4215 | 40 406 . 451 99 753 1177 599 300 58 331 . . 1 Legs 70 | . 70 . . . . . . . . . . . . Wheels 2039 | . 474 446 24 . 37 . . . . 45 856 138 19 Hover . | . . . . . . . . . . . . . . Flight . | . . . . . . . . . . . . . . Fastest Speed 50 | 50 115 115 115 160 110 160 160 240 155 145 101 230 50 Average Speed 167 | 141 172 115 158 160 162 164 194 240 169 210 146 230 86 Slowest Speed 800 | 160 800 115 240 160 320 246 240 240 240 272 230 230 245 Overloaded Moves . | . . . . . . . . . . . . . . Propulsion Burnouts . | . . . . . . . . . . . . . . Robots Hopped . | . . . . . . . . . . . . . . Potential Cave-ins . | . . . . . . . . . . . . . . Cave-ins Triggered . | . . . . . . . . . . . . . . Exploration Rate (%) 44 | 3 97 74 45 19 80 69 17 45 9 12 73 3 71 Regions Visited 13 Branch Regions 4 Pre-discovered Areas . | . . . . . . . . . . . . . . Known Exits Taken 4 | . . . . . 1 . 1 1 . 1 . . . Unknown Exits Taken 6 | 1 1 1 1 1 . . . . 1 . . . . Scrap Searched 3 | . . 1 . 1 . . . . 1 . . . . Spaces Dug . | . . . . . . . . . . . . . . Terrain Destroyed 159 | . 9 9 13 . . 2 93 . . 20 13 . . Melee . | . . . . . . . . . . . . . . Projectile . | . . . . . . . . . . . . . . AOE 159 | . 9 9 13 . . 2 93 . . 20 13 . . Terrain Rammed . | . . . . . . . . . . . . . . Walls Destroyed . | . . . . . . . . . . . . . . Machines Disabled . | . . . . . . . . . . . . . . Actions | -11 -10 -10 -9 -9 -8 -8 -7 -7 -7 -6 -6 -5 -5 --------- Run | Yrd Mat Min Mat Min Mat Gar Fac Low Low Fac Gar Fac Was Total 8079 | 56 1184 470 727 145 1189 1336 690 338 60 515 1043 152 174 Wait 680 | . 106 15 132 26 209 35 49 14 . 49 19 9 17 Move 6431 | 47 952 445 474 98 789 1175 598 299 57 375 854 138 130 Hop . | . . . . . . . . . . . . . . Pick Up 113 | 2 22 2 20 1 26 7 1 2 2 5 23 . . Fast Attach 56 | 6 7 . 2 . 16 3 2 . . 4 13 1 2 Attach 55 | . 7 1 13 . 8 5 1 4 . 7 6 1 2 Detach 6 | . 1 . 2 . . . . . . 2 1 . . Swap 65 | . 3 . 3 . 12 21 7 2 . 3 12 1 1 Drop 85 | . 9 . 12 1 27 12 3 . . 2 17 1 1 Fire 479 | . 69 4 53 19 101 65 21 17 . 55 53 1 21 Melee 34 | . . . 2 . . 12 3 . . 4 13 . . Ram 5 | . 2 3 . . . . . . . . . . . Kick 4 | . 4 . . . . . . . . . . . . Crush 29 | 1 2 . 13 . 1 . 3 . 1 8 . . . Escape Stasis 34 | . . . . . . . 2 . . . 32 . . Rewire 3 | . . . 1 . . 1 . . . 1 . . . Trap . | . . . . . . . . . . . . . . Miscellaneous . | . . . . . . . . . . . . . . Route ------- -11/Scrapyard -10/Materials (discovered 6 exits: *Mat x3 / [*Min x2] / [*Sub]) -10/Mines -9/Materials -9/Mines -8/Materials (discovered 4 exits: *Fac x2 / [*Sto] / Gar) -8/Garrison (discovered 3 exits: *Fac x3) -7/Factory (discovered 2 exits: *Low x2) -7/Lower Caves -7/Lower Caves -6/Factory -6/Garrison (discovered 3 exits: *Fac x3) -5/Factory -5/Waste (discovered 1 exit: [*Fac]) History --------- Turn | Location | Event 10 | -11/Scrapyard | Discovered new exit (range 15) 80 | -11/Scrapyard | Entered Materials 307 | -10/Materials | Build established: Mutant 313 | -10/Materials | Discovered new exit (range 16) 638 | -10/Materials | Discovered new exit (range 15) 750 | -10/Materials | Discovered new exit (range 10) 801 | -10/Materials | Discovered new exit (range 8) 1098 | -10/Materials | Lost 3 parts (1p2w) 1421 | -10/Materials | Discovered new exit (range 10) 1927 | -10/Materials | Repaired Corrupted Lgt. Treads 1940 | -10/Materials | Discovered new exit (range 14) 2084 | -10/Materials | Entered Mines 2417 | -10/Mines | Learned Materials security intel 2501 | -10/Mines | Found DCF Scrap (15 items) 2552 | -10/Mines | Core integrity fell below 50% 2606 | -10/Mines | Discovered new exit (range 5) 2610 | -10/Mines | Received a Mining Laser from a helpful Derelict 2630 | -10/Mines | Entered Materials 2630 | -9/Materials | Accompanied by 1 ally 2630 | -9/Materials | Evolved 2 slots: Propulsion x1, Utility x1 3633 | -9/Materials | Discovered new exit (range 16) 3723 | -9/Materials | Entered Mines 3728 | -9/Mines | Met a Derelict bent on vengeance 3829 | -9/Mines | Discovered new exit (range 12) 3877 | -9/Mines | Assembled infested the area 3957 | -9/Mines | Entered Materials 3957 | -8/Materials | Evolved 2 slots: Utility x1, Weapon x1 4414 | -8/Materials | Repaired Minigun 4732 | -8/Materials | Build established: Gunner 4832 | -8/Materials | Discovered new exit (range 15) 4908 | -8/Materials | Discovered new exit (range 14) 5357 | -8/Materials | Repaired Corrupted Minigun? 5397 | -8/Materials | Discovered new exit (range 14) 5812 | -8/Materials | Identified exit to Garrison 5814 | -8/Materials | Entered Garrison 5876 | -8/Garrison | Triggered checkpoint 5953 | -8/Garrison | Discovered new exit (range 9) 6044 | -8/Garrison | Triggered checkpoint 6197 | -8/Garrison | Triggered checkpoint 6200 | -8/Garrison | Core integrity fell below 50% 6283 | -8/Garrison | Discovered new exit (range 14) 6318 | -8/Garrison | Triggered checkpoint 6530 | -8/Garrison | Discovered new exit (range 13) 6638 | -8/Garrison | Build established: Scavenger-Gunner 6646 | -8/Garrison | Triggered checkpoint 6666 | -8/Garrison | Discovered new exit (range 18) 6666 | -8/Garrison | Discovered new exit (range 76) 6666 | -8/Garrison | Discovered new exit (range 64) 6762 | -8/Garrison | Triggered checkpoint 7369 | -8/Garrison | Installed Relay Interface Framework 7577 | -8/Garrison | Garrison Relay disabled 7640 | -8/Garrison | Triggered checkpoint 7739 | -8/Garrison | Garrison Relay disabled 8031 | -8/Garrison | Entered Factory 8031 | -7/Factory | Accompanied by 3 allies 8031 | -7/Factory | Evolved 2 slots: Utility x2 9228 | -7/Factory | Identified exit to Lower Caves 9332 | -7/Factory | Entered Lower Caves 9405 | -7/Lower Caves | Lost 3 parts (1u2w) 9594 | -7/Lower Caves | Identified exit to Lower Caves 9614 | -7/Lower Caves | Encountered a Warlord checkpoint 9662 | -7/Lower Caves | Build established: Scavenger-Tank 9778 | -7/Lower Caves | Lost 3 parts (2n1w) 10043 | -7/Lower Caves | Build established: Scavenger-Mutant 10118 | -7/Lower Caves | Entered another Lower Caves area 10119 | -7/Lower Caves | Encountered a Warlord checkpoint 10193 | -7/Lower Caves | Discovered new exit (range 8) 10219 | -7/Lower Caves | Entered Factory 10219 | -6/Factory | Evolved 2 slots: Propulsion x1, Utility x1 10439 | -6/Factory | Central database locked down 10843 | -6/Factory | Build established: Scavenger-Tank 11166 | -6/Factory | Garrison activated, responded to threat 11252 | -6/Factory | Identified exit to Garrison 11254 | -6/Factory | Entered Garrison 11311 | -6/Garrison | Build established: Mutant 11438 | -6/Garrison | Triggered checkpoint 11480 | -6/Garrison | Lost 4 parts (2n2w) 11537 | -6/Garrison | Garrison Relay disabled 11660 | -6/Garrison | Triggered checkpoint 11764 | -6/Garrison | Discovered new exit (range 11) 11773 | -6/Garrison | Rescued a captive Derelict 11776 | -6/Garrison | Rescued a captive Derelict 11822 | -6/Garrison | Triggered checkpoint 11858 | -6/Garrison | Garrison Relay disabled 11970 | -6/Garrison | Triggered checkpoint 12004 | -6/Garrison | Triggered checkpoint 12052 | -6/Garrison | Triggered checkpoint 12086 | -6/Garrison | Lost 3 allies 12170 | -6/Garrison | Triggered checkpoint 12213 | -6/Garrison | Garrison Relay disabled 12240 | -6/Garrison | Triggered checkpoint 12284 | -6/Garrison | Discovered new exit (range 15) 12318 | -6/Garrison | Expanded RIF knowledge: Watcher Feeds 12545 | -6/Garrison | Build established: Bothacker-Gunner 12546 | -6/Garrison | Triggered checkpoint 12572 | -6/Garrison | Garrison Relay disabled 12689 | -6/Garrison | Discovered new exit (range 10) 12736 | -6/Garrison | Triggered checkpoint 12799 | -6/Garrison | Entered Factory 12799 | -5/Factory | Accompanied by 1 ally 12799 | -5/Factory | Evolved 2 slots: Utility x2 12991 | -5/Factory | Fabricated T-07 Excavator (x2) 13130 | -5/Factory | Sucked down chute 13130 | -5/Factory | Entered Waste 13144 | -5/Waste | Spotted C-40 Crusher 13163 | -5/Waste | Allies destroyed C-40 Crusher 13163 | -5/Waste | Spotted C-40 Crusher 13182 | -5/Waste | Destroyed C-40 Crusher 13195 | -5/Waste | Spotted C-40 Crusher 13195 | -5/Waste | Spotted C-40 Crusher 13215 | -5/Waste | Crushed by Compactor (1 part destroyed, 2 dropped) 13215 | -5/Waste | Crushed by Compactor (1 part destroyed, 2 dropped) 13216 | -5/Waste | Destroyed C-40 Crusher 13218 | -5/Waste | Crushed by Compactor (1 part destroyed, 1 dropped) 13221 | -5/Waste | Crushed by Compactor (1 part destroyed, 1 dropped) 13224 | -5/Waste | Crushed by Compactor (1 part destroyed, 2 dropped) 13225 | -5/Waste | Crushed by Compactor (1 part destroyed, 1 dropped) 13227 | -5/Waste | Crushed by Compactor (1 part destroyed) 13229 | -5/Waste | Spotted C-40 Crusher 13229 | -5/Waste | Spotted C-40 Crusher 13230 | -5/Waste | 4 allies followed down the chute 13258 | -5/Waste | Lost 7 parts (1p1n3u2w) 13285 | -5/Waste | Lost 4 allies 13297 | -5/Waste | Crushed by Compactor (1 part destroyed) 13315 | -5/Waste | Discovered new exit (range 15) 13322 | -5/Waste | Self-destructed Last Messages --------------- Guardian 5b Imp. Light Armor Plating crushed. Imp. Light Armor Plating crushed. Guardian 5b Gatling Laser crushed. Guardian 5b Imp. Heat Sink crushed. Guardian 5b suffers critical hit (Destroy). Guardian 5b destroyed. Imp. Heat Sink crushed. Excavator 6a Mining Laser crushed. Excavator 6a Lgt. Ion Engine crushed. Lgt. Ion Engine disintegrated. Excavator 6a Wheel crushed. Excavator 6a Seismic Detector crushed. Seismic Detector disintegrated. Excavator 6a destroyed. Acquired Linear Accelerator. 9 Matter crushed. 3 Matter crushed. Linear Accelerator crushed. Corrupted Authchip [R/NC] crushed. EXIT=FOUND Map ----- +----------------------------------------------------+ | ?????????????????????????????????????????????????? | | ?????????????????????????????????????????????????? | | ?????????????????????????????????????????????????? | | ?????????????????????????????????????????????????? | | ?????????????????????????????????????????????????? | | ?????????????????????????????????????????????????? | | ?????????????????????????????????????????????????? | | ?????????????????????????????????????????????????? | | ??? ???????? ??????????????????????????????? | | ??# #??????# #?????????????????????????????? | | ??# #??????# #?????????????????????????????? | | ??# #??????# ###???????????????????????????? | | ??# #??????# #???????????????????????????? | | ??# #??????# #???????????????????????????? | | ??# #??????# ????????????????????????????? | | ??# #??????# ?????????????????????????????? | | ??# #??????# #?????????????????????????????? | | ??# #??????# #??############???????????????? | | ??# #??????# #??# #???????????????? | | ??# #??????# #??# #???????????????? | | ### ######## #### #???????????????? | | #???????????????? | | #???????????????? | | < | #???????????????? | | #???????????????? | | ### = ######## #### @ #???????????????? | | ??# #??????# #??# #???????????????? | | ??# #??????# #??# #???????????????? | | ??# #??????# #??############???????????????? | | ??# #??????# ! #?????????????????????????????? | | ?? #??????# ?????????????????????????????? | | ? #??????# ????????????????????????????? | | = #??????# #???????????????????????????? | | [ #??????# #???????????????????????????? | | ### #??????# ###???????????????????????????? | | ??# #??????# #?????????????????????????????? | | ??# #??????# #?????????????????????????????? | | ??# #??????# #?????????????????????????????? | | ??? ???????? ??????????????????????????????? | | ?????????????????????????????????????????????????? | | ?????????????????????????????????????????????????? | | ?????????????????????????????????????????????????? | | ?????????????????????????????????????????????????? | | ?????????????????????????????????????????????????? | | ?????????????????????????????????????????????????? | | ?????????????????????????????????????????????????? | | ?????????????????????????????????????????????????? | | ?????????????????????????????????????????????????? | | ?????????????????????????????????????????????????? | | ?????????????????????????????????????????????????? | +----------------------------------------------------+ Best States ------------- Heat Dissipation 71 Coolant Potential 65 Energy Generation 21 Energy Capacity 650 Matter Stores 300 Matter Capacity 300 Sight Range 16 Terrain Scan Density 10 Armor Coverage 450 Evasion (%) 50 Targeting Accuracy 8 Armor Integrity Analysis 30 Recoil Reduction 4 Salvage Targeting 2 Offensive Hacking 10 Relay Coupler Types 3 Relay Coupler Value 49 Authchip Count 5 Item Schematics ----------------- None Robot Schematics ------------------ None Fabricated ------------ T-07 Excavator | x2 | -5/Factory | Preloaded Repaired ---------- Lgt. Treads | 63% | -10/Materials | Corrupted Minigun | 31% | -8/Materials Minigun | 88% | -8/Materials | Corrupted Studied --------- Minigun | -8/Materials | Hacked Hvy. Assault Rifle | -8/Materials | Hacked Flak Gun | -8/Materials | Hacked Lgt. Treads | -6/Factory | Hacked Alien Tech Used ----------------- None Achievements -------------- Join The Dark Side Mindtrick You Will Be Upgraded Challenges ------------ None Game ------ Seed BlinkAluminumCleaver Manual? 0 Play Time 01:32:32 Cumulative 270.3 hours Start 2026.09.15 @ 15:58:59 End 2026.09.15 @ 17:57:01 Sessions 3 Manual Loads 0 Difficulty Rogue Special Mode None Game No. 296 Rogue 296 Adventurer 0 Explorer 0 Win Type - Total 3 Types 3/0/0/0/0/0/0/0/0/0 Lore% 33 Gallery% 57 Achievement% 39 Wizard Run 0 Options --------- Layout 1 ASCII 0 Keyboard 0 Movement Numpad Keybinds 0 Fullscreen 2 Font 24/Smallcaps Map View 50x35 Zoom Use 0% Tactical HUD 0 Map Filters NONE Filters NONE Steam 1 RUN: 03865cde-abcf-4e94-8c21-7bb15dce3ca2